[Event "Late-Titled-Tuesday-Blitz-June-18-2024"]
[Site "Chess.com"]
[Date "2024.06.18"]
[Round "3"]
[White "Yaacovn"]
[Black "sari07"]
[Result "1-0"]
[WhiteElo "2797"]
[BlackElo "2382"]
[TimeControl "180+1"]
[EndTime "14:28:39 PDT"]
[Termination "Yaacovn won by resignation"]

1. d4 {[%clk 0:02:55.4]} 1... d5 {[%clk 0:02:59.1]} 2. e3 {[%clk 0:02:54.7]}
2... Nf6 {[%clk 0:02:56.1]} 3. Bd3 {[%clk 0:02:53.8]} 3... c5 {[%clk 0:02:43.3]}
4. c3 {[%clk 0:02:53.3]} 4... Nc6 {[%clk 0:02:42.8]} 5. f4 {[%clk 0:02:53.3]}
5... g6 {[%clk 0:02:40.8]} 6. Nf3 {[%clk 0:02:52.2]} 6... Bg7 {[%clk 0:02:41.2]}
7. O-O {[%clk 0:02:48.6]} 7... O-O {[%clk 0:02:39.2]} 8. Nbd2 {[%clk 0:02:47.5]}
8... Bg4 {[%clk 0:02:30.9]} 9. Qe1 {[%clk 0:02:47]} 9... Bxf3 {[%clk 0:02:20.3]}
10. Nxf3 {[%clk 0:02:46.2]} 10... Ne4 {[%clk 0:02:16.1]} 11. Qe2 {[%clk
0:02:40.5]} 11... Rc8 {[%clk 0:02:02.3]} 12. Bxe4 {[%clk 0:02:37.4]} 12... dxe4
{[%clk 0:02:02]} 13. Ng5 {[%clk 0:02:37.6]} 13... Qd5 {[%clk 0:01:42.3]} 14. c4
{[%clk 0:02:36.6]} 14... Qf5 {[%clk 0:01:39.2]} 15. g4 {[%clk 0:02:29.5]} 15...
Qd7 {[%clk 0:01:30.3]} 16. d5 {[%clk 0:02:29.8]} 16... Na5 {[%clk 0:01:25.2]}
17. Nxe4 {[%clk 0:02:29.8]} 17... b5 {[%clk 0:01:25.8]} 18. cxb5 {[%clk
0:02:16.7]} 18... Qxd5 {[%clk 0:01:25.1]} 19. Nc3 {[%clk 0:02:14.3]} 19... Bxc3
{[%clk 0:00:51.5]} 20. bxc3 {[%clk 0:02:13.9]} 20... c4 {[%clk 0:00:51.9]} 21.
Ba3 {[%clk 0:02:08.2]} 21... Rfe8 {[%clk 0:00:32.6]} 22. Rab1 {[%clk 0:02:05.8]}
22... Rb8 {[%clk 0:00:28.5]} 23. Rfd1 {[%clk 0:02:00.9]} 23... Qe6 {[%clk
0:00:28.3]} 24. Bc5 {[%clk 0:01:57.1]} 24... Nb7 {[%clk 0:00:22.4]} 25. Bxa7
{[%clk 0:01:54.8]} 25... Ra8 {[%clk 0:00:23]} 26. b6 {[%clk 0:01:49.2]} 26... h5
{[%clk 0:00:18.3]} 27. h3 {[%clk 0:01:48.5]} 27... hxg4 {[%clk 0:00:18.2]} 28.
hxg4 {[%clk 0:01:49.2]} 28... Kg7 {[%clk 0:00:18.1]} 29. Kg2 {[%clk 0:01:48.3]}
29... Rh8 {[%clk 0:00:16.1]} 30. Qf3 {[%clk 0:01:48.1]} 30... Nc5 {[%clk
0:00:12.5]} 31. Rh1 {[%clk 0:01:41.4]} 31... Rxh1 {[%clk 0:00:11.3]} 32. Rxh1
{[%clk 0:01:42.2]} 32... Ne4 {[%clk 0:00:07.8]} 33. b7 {[%clk 0:01:32.6]} 33...
Rxa7 {[%clk 0:00:08.1]} 34. b8=Q {[%clk 0:01:32.9]} 34... Rxa2+ {[%clk
0:00:08.7]} 35. Kh3 {[%clk 0:01:32.6]} 35... Nf2+ {[%clk 0:00:07]} 36. Kh4
{[%clk 0:01:23.3]} 36... Qf6+ {[%clk 0:00:01.9]} 37. g5 {[%clk 0:01:22.9]} 37...
Qe6 {[%clk 0:00:02.3]} 38. Qe5+ {[%clk 0:01:19.5]} 38... Qxe5 {[%clk 0:00:02.1]}
39. fxe5 {[%clk 0:01:20.4]} 39... Nd3 {[%clk 0:00:01.8]} 40. Kg3 {[%clk
0:01:14.9]} 40... Rf2 {[%clk 0:00:01.9]} 41. Qxf2 {[%clk 0:01:15]} 41... Nxf2
{[%clk 0:00:02.8]} 42. Kxf2 {[%clk 0:01:15.6]} 1-0

[Event "Late-Titled-Tuesday-Blitz-June-18-2024"]
[Site "Chess.com"]
[Date "2024.06.18"]
[Round "3"]
[White "XDPS"]
[Black "ArtemDyachuk"]
[Result "1-0"]
[WhiteElo "2897"]
[BlackElo "2647"]
[TimeControl "180+1"]
[EndTime "14:28:41 PDT"]
[Termination "XDPS won by resignation"]

1. d4 {[%clk 0:02:46.3]} 1... d5 {[%clk 0:02:59.5]} 2. Bf4 {[%clk 0:02:40.1]}
2... Nf6 {[%clk 0:02:57.9]} 3. e3 {[%clk 0:02:39.4]} 3... c5 {[%clk 0:02:58.3]}
4. c3 {[%clk 0:02:39.3]} 4... Nc6 {[%clk 0:02:58.9]} 5. Nd2 {[%clk 0:02:39.4]}
5... e6 {[%clk 0:02:57]} 6. Ngf3 {[%clk 0:02:39.3]} 6... Bd6 {[%clk 0:02:57.3]}
7. Bg3 {[%clk 0:02:39.9]} 7... O-O {[%clk 0:02:50.4]} 8. Bb5 {[%clk 0:02:39.7]}
8... Ne7 {[%clk 0:02:36.8]} 9. Bd3 {[%clk 0:02:34.4]} 9... b6 {[%clk 0:02:30.3]}
10. Ne5 {[%clk 0:02:34.1]} 10... Bb7 {[%clk 0:02:29]} 11. Qf3 {[%clk 0:02:34.1]}
11... Ng6 {[%clk 0:02:19.7]} 12. O-O {[%clk 0:02:33.9]} 12... Qe7 {[%clk
0:01:40.8]} 13. Rfe1 {[%clk 0:02:33.1]} 13... Nd7 {[%clk 0:01:32]} 14. Nxg6
{[%clk 0:02:24.9]} 14... hxg6 {[%clk 0:01:30.4]} 15. Rad1 {[%clk 0:02:21.4]}
15... e5 {[%clk 0:01:25.1]} 16. e4 {[%clk 0:02:14.4]} 16... cxd4 {[%clk
0:00:22]} 17. cxd4 {[%clk 0:02:10.6]} 17... dxe4 {[%clk 0:00:21.9]} 18. Bxe4
{[%clk 0:02:10.5]} 18... Bxe4 {[%clk 0:00:21.9]} 19. Nxe4 {[%clk 0:02:10.8]}
19... Bb4 {[%clk 0:00:21.6]} 20. Re2 {[%clk 0:02:07]} 20... f5 {[%clk 0:00:05]}
21. Qb3+ {[%clk 0:01:49.9]} 21... Kh8 {[%clk 0:00:04.7]} 22. Ng5 {[%clk
0:01:29.1]} 22... Qxg5 {[%clk 0:00:02.8]} 23. Qxb4 {[%clk 0:01:28.9]} 23... f4
{[%clk 0:00:03.2]} 24. dxe5 {[%clk 0:01:21]} 24... Nc5 {[%clk 0:00:03.2]} 25.
Rd4 {[%clk 0:01:06.3]} 25... fxg3 {[%clk 0:00:02.4]} 26. Rh4+ {[%clk 0:01:06.6]}
26... Kg8 {[%clk 0:00:02.9]} 27. Qc4+ {[%clk 0:01:06.9]} 27... Rf7 {[%clk
0:00:02.3]} 28. hxg3 {[%clk 0:01:07.1]} 28... Rd8 {[%clk 0:00:02.1]} 29. Kh2
{[%clk 0:01:02.4]} 29... Rd1 {[%clk 0:00:01.9]} 30. b4 {[%clk 0:00:58.2]} 30...
Nd7 {[%clk 0:00:01]} 31. e6 {[%clk 0:00:58.1]} 31... Rc1 {[%clk 0:00:01]} 32.
exf7+ {[%clk 0:00:57.2]} 1-0

[Event "Late-Titled-Tuesday-Blitz-June-18-2024"]
[Site "Chess.com"]
[Date "2024.06.18"]
[Round "3"]
[White "JEHUBNER"]
[Black "laskakid"]
[Result "0-1"]
[WhiteElo "2097"]
[BlackElo "2381"]
[TimeControl "180+1"]
[EndTime "14:28:43 PDT"]
[Termination "laskakid won by resignation"]

1. e4 {[%clk 0:03:00.9]} 1... d6 {[%clk 0:02:59.7]} 2. d4 {[%clk 0:02:59.5]}
2... Nf6 {[%clk 0:02:59.9]} 3. Nc3 {[%clk 0:02:55.1]} 3... e5 {[%clk 0:03:00.3]}
4. dxe5 {[%clk 0:02:54]} 4... dxe5 {[%clk 0:03:01.2]} 5. Qxd8+ {[%clk
0:02:53.9]} 5... Kxd8 {[%clk 0:03:02.1]} 6. Nf3 {[%clk 0:02:54.1]} 6... Bd6
{[%clk 0:03:01.4]} 7. Bg5 {[%clk 0:02:51.8]} 7... Be6 {[%clk 0:02:59.9]} 8.
O-O-O {[%clk 0:02:48.3]} 8... Ke7 {[%clk 0:02:56.9]} 9. Nd5+ {[%clk 0:02:45.9]}
9... Bxd5 {[%clk 0:02:55.6]} 10. exd5 {[%clk 0:02:46.8]} 10... h6 {[%clk
0:02:49.6]} 11. Be3 {[%clk 0:02:41.4]} 11... Ng4 {[%clk 0:02:43.7]} 12. h3
{[%clk 0:02:33.6]} 12... Nxe3 {[%clk 0:02:43.6]} 13. fxe3 {[%clk 0:02:34.5]}
13... Nd7 {[%clk 0:02:39.6]} 14. e4 {[%clk 0:02:32.3]} 14... Nc5 {[%clk
0:02:27.1]} 15. Bd3 {[%clk 0:02:28.6]} 15... a5 {[%clk 0:02:17.9]} 16. Rhe1
{[%clk 0:02:21.8]} 16... Nxd3+ {[%clk 0:02:15]} 17. Rxd3 {[%clk 0:02:20.1]}
17... g6 {[%clk 0:02:08.2]} 18. g4 {[%clk 0:02:15.4]} 18... Rac8 {[%clk
0:01:53.5]} 19. c4 {[%clk 0:01:38.1]} 19... f6 {[%clk 0:01:48.6]} 20. Nd2 {[%clk
0:01:29.6]} 20... h5 {[%clk 0:01:44.1]} 21. Rf3 {[%clk 0:01:29]} 21... hxg4
{[%clk 0:01:40.7]} 22. hxg4 {[%clk 0:01:29.9]} 22... Rh4 {[%clk 0:01:40.1]} 23.
Ref1 {[%clk 0:01:28.8]} 23... Rf8 {[%clk 0:01:14.5]} 24. g5 {[%clk 0:01:23.7]}
24... Rf4 {[%clk 0:01:14.3]} 25. gxf6+ {[%clk 0:01:20.1]} 25... R8xf6 {[%clk
0:01:14.2]} 26. Kd1 {[%clk 0:01:17.8]} 26... g5 {[%clk 0:01:09.8]} 27. Ke2
{[%clk 0:01:16.5]} 27... g4 {[%clk 0:01:07.1]} 28. Rxf4 {[%clk 0:01:13.7]} 28...
exf4 {[%clk 0:01:03.7]} 29. Rh1 {[%clk 0:00:45.2]} 29... f3+ {[%clk 0:00:59.4]}
30. Kf1 {[%clk 0:00:43]} 30... g3 {[%clk 0:00:53]} 31. Rh7+ {[%clk 0:00:38.4]}
31... Kf8 {[%clk 0:00:48.8]} 32. Rh5 {[%clk 0:00:22.2]} 32... g2+ {[%clk
0:00:44.1]} 33. Kf2 {[%clk 0:00:16.9]} 33... Bc5+ {[%clk 0:00:44.1]} 34. Kg3
{[%clk 0:00:15.3]} 34... g1=Q+ {[%clk 0:00:44]} 0-1

[Event "Late-Titled-Tuesday-Blitz-June-18-2024"]
[Site "Chess.com"]
[Date "2024.06.18"]
[Round "3"]
[White "shirovin"]
[Black "micke12a"]
[Result "0-1"]
[WhiteElo "2117"]
[BlackElo "2384"]
[TimeControl "180+1"]
[EndTime "14:28:44 PDT"]
[Termination "micke12a won on time"]

1. e4 {[%clk 0:03:00.9]} 1... c5 {[%clk 0:02:54.2]} 2. Nf3 {[%clk 0:02:59.8]}
2... d6 {[%clk 0:02:53.7]} 3. d4 {[%clk 0:03:00.3]} 3... cxd4 {[%clk 0:02:54.3]}
4. Nxd4 {[%clk 0:03:00.7]} 4... Nf6 {[%clk 0:02:54.9]} 5. Nc3 {[%clk 0:03:01]}
5... g6 {[%clk 0:02:55.4]} 6. Be3 {[%clk 0:02:58.5]} 6... Bg7 {[%clk 0:02:55.6]}
7. f3 {[%clk 0:02:57.8]} 7... O-O {[%clk 0:02:56.2]} 8. Qd2 {[%clk 0:02:56.9]}
8... Nc6 {[%clk 0:02:56.9]} 9. O-O-O {[%clk 0:02:55.7]} 9... Bd7 {[%clk
0:02:57.1]} 10. h4 {[%clk 0:02:49.3]} 10... Rc8 {[%clk 0:02:57.6]} 11. g4 {[%clk
0:02:47.9]} 11... Ne5 {[%clk 0:02:57.2]} 12. h5 {[%clk 0:02:41.6]} 12... Qa5
{[%clk 0:02:57.1]} 13. Kb1 {[%clk 0:02:29.4]} 13... Nxf3 {[%clk 0:02:52.4]} 14.
Nxf3 {[%clk 0:02:14.8]} 14... Rxc3 {[%clk 0:02:52.8]} 15. Qxc3 {[%clk
0:02:07.1]} 15... Qxc3 {[%clk 0:02:52.7]} 16. bxc3 {[%clk 0:02:06.7]} 16... Bxg4
{[%clk 0:02:53.4]} 17. Be2 {[%clk 0:01:55]} 17... Nxe4 {[%clk 0:02:53.3]} 18.
Bd2 {[%clk 0:00:53.1]} 18... Bxc3 {[%clk 0:02:16.4]} 19. Rh2 {[%clk 0:00:34.4]}
19... Bxh5 {[%clk 0:02:06.4]} 20. Rxh5 {[%clk 0:00:31.3]} 20... gxh5 {[%clk
0:02:03.4]} 21. Rg1+ {[%clk 0:00:29.2]} 21... Kh8 {[%clk 0:02:00.6]} 22. Bh6
{[%clk 0:00:26.3]} 22... Rc8 {[%clk 0:01:48.5]} 23. Bd3 {[%clk 0:00:20.7]} 23...
Nf6 {[%clk 0:01:03.8]} 24. Ng5 {[%clk 0:00:19.1]} 24... Ng4 {[%clk 0:00:53.5]}
25. Nxf7+ {[%clk 0:00:16.9]} 25... Kg8 {[%clk 0:00:53.9]} 26. Nxd6 {[%clk
0:00:09]} 26... exd6 {[%clk 0:00:50.9]} 27. Bf5 {[%clk 0:00:08.9]} 27... Rc5
{[%clk 0:00:47]} 28. Bxg4 {[%clk 0:00:08.3]} 28... hxg4 {[%clk 0:00:47]} 29.
Rxg4+ {[%clk 0:00:07.3]} 29... Kf7 {[%clk 0:00:47]} 0-1

[Event "Late-Titled-Tuesday-Blitz-June-18-2024"]
[Site "Chess.com"]
[Date "2024.06.18"]
[Round "3"]
[White "Redzishchess"]
[Black "cristiano78"]
[Result "1-0"]
[WhiteElo "2448"]
[BlackElo "2218"]
[TimeControl "180+1"]
[EndTime "14:28:45 PDT"]
[Termination "Redzishchess won by checkmate"]

1. d4 {[%clk 0:03:00.9]} 1... Nf6 {[%clk 0:02:57.4]} 2. c4 {[%clk 0:03:01.1]}
2... g6 {[%clk 0:02:56.8]} 3. Nf3 {[%clk 0:03:01.3]} 3... Bg7 {[%clk 0:02:56.4]}
4. g3 {[%clk 0:03:00.3]} 4... O-O {[%clk 0:02:55.8]} 5. Bg2 {[%clk 0:03:00.2]}
5... d6 {[%clk 0:02:55.8]} 6. O-O {[%clk 0:03:00.2]} 6... Nc6 {[%clk 0:02:56.2]}
7. Nc3 {[%clk 0:02:59.9]} 7... Bf5 {[%clk 0:02:56.1]} 8. Ne1 {[%clk 0:02:56.5]}
8... Qd7 {[%clk 0:02:54.2]} 9. e4 {[%clk 0:02:56.5]} 9... Bh3 {[%clk 0:02:53.8]}
10. f3 {[%clk 0:02:57]} 10... Bxg2 {[%clk 0:02:53.5]} 11. Kxg2 {[%clk
0:02:57.9]} 11... e5 {[%clk 0:02:51.2]} 12. d5 {[%clk 0:02:54.1]} 12... Ne7
{[%clk 0:02:48.7]} 13. Nc2 {[%clk 0:02:54]} 13... Nh5 {[%clk 0:02:45.9]} 14. b4
{[%clk 0:02:17.2]} 14... f5 {[%clk 0:02:45.1]} 15. Be3 {[%clk 0:02:07]} 15... f4
{[%clk 0:02:44.6]} 16. Bg1 {[%clk 0:02:01.3]} 16... fxg3 {[%clk 0:02:44.2]} 17.
hxg3 {[%clk 0:02:02.2]} 17... g5 {[%clk 0:02:41.8]} 18. f4 {[%clk 0:01:49.7]}
18... Nxf4+ {[%clk 0:02:34.4]} 19. gxf4 {[%clk 0:01:48.3]} 19... exf4 {[%clk
0:02:34.2]} 20. Bd4 {[%clk 0:01:48]} 20... Ng6 {[%clk 0:02:32.7]} 21. Rh1 {[%clk
0:01:12.9]} 21... Nh4+ {[%clk 0:02:27.6]} 22. Kf1 {[%clk 0:00:49.8]} 22... f3
{[%clk 0:02:25.7]} 23. Bxg7 {[%clk 0:00:42.7]} 23... Kxg7 {[%clk 0:02:25.7]} 24.
Nd4 {[%clk 0:00:43.6]} 24... Qg4 {[%clk 0:02:23.6]} 25. Ne6+ {[%clk 0:00:22.6]}
25... Kg8 {[%clk 0:02:19.5]} 26. Rh2 {[%clk 0:00:06]} 26... Ng2 {[%clk
0:02:13.3]} 27. Qd4 {[%clk 0:00:05.5]} 27... Rf7 {[%clk 0:02:08.3]} 28. Rd1
{[%clk 0:00:04.6]} 28... h5 {[%clk 0:02:02.8]} 29. Qd2 {[%clk 0:00:03.5]} 29...
Nf4 {[%clk 0:01:57.4]} 30. Nxf4 {[%clk 0:00:03.4]} 30... Rxf4 {[%clk 0:01:57.4]}
31. Kf2 {[%clk 0:00:03.8]} 31... Raf8 {[%clk 0:01:54.5]} 32. Rg1 {[%clk
0:00:03.9]} 32... Qxg1+ {[%clk 0:01:44]} 33. Kxg1 {[%clk 0:00:04.8]} 33... h4
{[%clk 0:01:40.3]} 34. Kf2 {[%clk 0:00:03.8]} 34... Kg7 {[%clk 0:01:39.5]} 35.
Qd4+ {[%clk 0:00:03.9]} 35... Kg6 {[%clk 0:01:39.3]} 36. Nd1 {[%clk 0:00:03.5]}
36... Kh5 {[%clk 0:01:39.4]} 37. Ne3 {[%clk 0:00:03.8]} 37... g4 {[%clk
0:01:34.9]} 38. Qg7 {[%clk 0:00:04.1]} 38... g3+ {[%clk 0:01:34.5]} 39. Qxg3
{[%clk 0:00:05]} 39... Rxe4 {[%clk 0:01:29]} 40. Qg7 {[%clk 0:00:02.4]} 40...
Rfe8 {[%clk 0:01:25.5]} 41. Qh7+ {[%clk 0:00:02.3]} 41... Kg5 {[%clk 0:01:23.7]}
42. Qg7+ {[%clk 0:00:03.2]} 42... Kh5 {[%clk 0:01:23.8]} 43. Qh7+ {[%clk
0:00:02.5]} 43... Kg5 {[%clk 0:01:24]} 44. Rxh4 {[%clk 0:00:02.6]} 44... Rxe3
{[%clk 0:01:23.7]} 45. Qh6+ {[%clk 0:00:02.4]} 45... Kf5 {[%clk 0:01:23.4]} 46.
Rf4+ {[%clk 0:00:03.1]} 46... Ke5 {[%clk 0:01:23]} 47. Qf6# {[%clk 0:00:04]} 1-0

[Event "Late-Titled-Tuesday-Blitz-June-18-2024"]
[Site "Chess.com"]
[Date "2024.06.18"]
[Round "3"]
[White "djano"]
[Black "romulocardoso"]
[Result "0-1"]
[WhiteElo "2587"]
[BlackElo "2328"]
[TimeControl "180+1"]
[EndTime "14:28:50 PDT"]
[Termination "romulocardoso won by resignation"]

1. e4 {[%clk 0:03:00.9]} 1... c5 {[%clk 0:02:39.6]} 2. Nc3 {[%clk 0:02:59.9]}
2... g6 {[%clk 0:02:40.5]} 3. Bc4 {[%clk 0:02:58.5]} 3... Nc6 {[%clk 0:02:40.9]}
4. h4 {[%clk 0:02:58]} 4... h5 {[%clk 0:02:39.9]} 5. d3 {[%clk 0:02:49.8]} 5...
Bg7 {[%clk 0:02:39.9]} 6. Nf3 {[%clk 0:02:47.2]} 6... d6 {[%clk 0:02:39.3]} 7.
Ng5 {[%clk 0:02:46.9]} 7... Nh6 {[%clk 0:02:34.5]} 8. Be3 {[%clk 0:02:41.5]}
8... Qa5 {[%clk 0:02:32.3]} 9. Bd2 {[%clk 0:02:39.4]} 9... O-O {[%clk
0:02:23.2]} 10. Nd5 {[%clk 0:02:34.5]} 10... Qd8 {[%clk 0:02:23]} 11. Bc3 {[%clk
0:02:26.2]} 11... Nd4 {[%clk 0:02:20.5]} 12. Qd2 {[%clk 0:02:21.7]} 12... a6
{[%clk 0:02:11.1]} 13. a4 {[%clk 0:02:20.8]} 13... Bd7 {[%clk 0:02:10.5]} 14. a5
{[%clk 0:02:19.5]} 14... Bb5 {[%clk 0:02:09.8]} 15. Ba2 {[%clk 0:02:16.5]} 15...
e6 {[%clk 0:02:02.5]} 16. Nf4 {[%clk 0:02:14.7]} 16... Qf6 {[%clk 0:01:46.4]}
17. O-O-O {[%clk 0:02:07.6]} 17... Qxf4 {[%clk 0:01:44.9]} 18. Kb1 {[%clk
0:01:52.8]} 18... Qxd2 {[%clk 0:01:43.9]} 19. Bxd2 {[%clk 0:01:53.7]} 19... Bf6
{[%clk 0:01:30.9]} 20. Nxe6 {[%clk 0:01:50.4]} 20... fxe6 {[%clk 0:01:31.2]} 21.
Bxh6 {[%clk 0:01:50.6]} 21... Bg7 {[%clk 0:01:29.7]} 22. Be3 {[%clk 0:01:50.6]}
22... Rae8 {[%clk 0:01:26.2]} 23. f3 {[%clk 0:01:46.6]} 23... Ba4 {[%clk
0:01:24.8]} 24. b3 {[%clk 0:01:36.7]} 24... Nb5 {[%clk 0:01:24.9]} 25. Kc1
{[%clk 0:01:27]} 25... Nc3 {[%clk 0:01:25]} 26. bxa4 {[%clk 0:01:23.6]} 26...
Nxa2+ {[%clk 0:01:24.6]} 27. Kd2 {[%clk 0:01:23.3]} 27... Bc3+ {[%clk
0:01:21.9]} 28. Ke2 {[%clk 0:01:23.3]} 28... Nb4 {[%clk 0:01:22.4]} 29. Rb1
{[%clk 0:01:19.3]} 29... Re7 {[%clk 0:01:16.7]} 30. Bg5 {[%clk 0:01:18.4]} 30...
Rd7 {[%clk 0:01:15]} 31. Rb3 {[%clk 0:01:18.2]} 31... Bf6 {[%clk 0:01:11.9]} 32.
Bd2 {[%clk 0:01:13.9]} 32... Nxc2 {[%clk 0:01:10.7]} 33. Kf2 {[%clk 0:01:11.8]}
33... Bd4+ {[%clk 0:01:09.7]} 34. Kg3 {[%clk 0:01:10.1]} 34... Be3 {[%clk
0:01:06.9]} 35. Bc3 {[%clk 0:01:06.1]} 35... Nd4 {[%clk 0:01:06.9]} 36. Rb6
{[%clk 0:01:05.3]} 36... Ne2+ {[%clk 0:01:04.4]} 37. Kh3 {[%clk 0:01:04.1]}
37... c4 {[%clk 0:00:59]} 38. Rb2 {[%clk 0:00:51.1]} 38... Nxc3 {[%clk
0:00:58.8]} 39. dxc4 {[%clk 0:00:51.6]} 39... Bd4 {[%clk 0:00:59.2]} 40. Rb3
{[%clk 0:00:51.1]} 40... Nxa4 {[%clk 0:00:56]} 41. Rd1 {[%clk 0:00:50.3]} 41...
Bc5 {[%clk 0:00:55.6]} 42. e5 {[%clk 0:00:50.4]} 42... Rf4 {[%clk 0:00:52.6]}
43. Rd2 {[%clk 0:00:41.6]} 43... Rxc4 {[%clk 0:00:52.4]} 44. g3 {[%clk
0:00:39.8]} 44... d5 {[%clk 0:00:52.6]} 45. f4 {[%clk 0:00:40]} 45... d4 {[%clk
0:00:52.9]} 46. g4 {[%clk 0:00:38.6]} 46... Rc3+ {[%clk 0:00:53.2]} 47. Rxc3
{[%clk 0:00:38]} 47... Nxc3 {[%clk 0:00:54.1]} 48. f5 {[%clk 0:00:36.6]} 48...
exf5 {[%clk 0:00:54.1]} 49. gxf5 {[%clk 0:00:36.4]} 49... gxf5 {[%clk
0:00:54.8]} 50. Kg3 {[%clk 0:00:37]} 50... Ne4+ {[%clk 0:00:53.6]} 0-1

[Event "Late-Titled-Tuesday-Blitz-June-18-2024"]
[Site "Chess.com"]
[Date "2024.06.18"]
[Round "3"]
[White "Gangster-accountant01"]
[Black "elis06"]
[Result "1-0"]
[WhiteElo "2569"]
[BlackElo "2371"]
[TimeControl "180+1"]
[EndTime "14:28:51 PDT"]
[Termination "Gangster-accountant01 won by checkmate"]

1. c4 {[%clk 0:02:55.6]} 1... e6 {[%clk 0:02:58.6]} 2. d4 {[%clk 0:02:54.7]}
2... d5 {[%clk 0:02:58.2]} 3. Nc3 {[%clk 0:02:54.5]} 3... Nf6 {[%clk 0:02:57.5]}
4. cxd5 {[%clk 0:02:54.7]} 4... exd5 {[%clk 0:02:57.5]} 5. Bg5 {[%clk
0:02:55.3]} 5... c6 {[%clk 0:02:57.6]} 6. e3 {[%clk 0:02:55.7]} 6... Be7 {[%clk
0:02:58]} 7. Bd3 {[%clk 0:02:56.3]} 7... Nbd7 {[%clk 0:02:58.1]} 8. h3 {[%clk
0:02:48.3]} 8... O-O {[%clk 0:02:48.2]} 9. Qc2 {[%clk 0:02:46.4]} 9... h6 {[%clk
0:02:47.6]} 10. Bf4 {[%clk 0:02:45.6]} 10... Re8 {[%clk 0:02:46.1]} 11. Nf3
{[%clk 0:02:44.7]} 11... Nf8 {[%clk 0:02:33]} 12. O-O {[%clk 0:02:43.4]} 12...
Ne6 {[%clk 0:02:28]} 13. Bg3 {[%clk 0:02:39]} 13... Bd6 {[%clk 0:02:19.8]} 14.
Ne5 {[%clk 0:02:38.8]} 14... Ng5 {[%clk 0:02:17.3]} 15. f4 {[%clk 0:02:29]}
15... Ne6 {[%clk 0:02:12.8]} 16. Rae1 {[%clk 0:02:26.3]} 16... Bd7 {[%clk
0:02:08.1]} 17. Bh4 {[%clk 0:02:26]} 17... Be7 {[%clk 0:02:03.9]} 18. Bg3 {[%clk
0:02:05.6]} 18... Nf8 {[%clk 0:01:54]} 19. Kh1 {[%clk 0:02:02.6]} 19... Nh5
{[%clk 0:01:52.3]} 20. Bf2 {[%clk 0:01:54.4]} 20... Bh4 {[%clk 0:01:50.3]} 21.
Kh2 {[%clk 0:01:54.2]} 21... Rc8 {[%clk 0:01:41.4]} 22. Qe2 {[%clk 0:01:50.7]}
22... Bxf2 {[%clk 0:01:38.3]} 23. Qxf2 {[%clk 0:01:50.9]} 23... Nf6 {[%clk
0:01:34.6]} 24. Qg3 {[%clk 0:01:49.2]} 24... a6 {[%clk 0:01:21.1]} 25. f5 {[%clk
0:01:43.8]} 25... c5 {[%clk 0:01:09.3]} 26. e4 {[%clk 0:01:27.1]} 26... cxd4
{[%clk 0:01:02.3]} 27. Nxd5 {[%clk 0:01:26.1]} 27... Nxd5 {[%clk 0:01:01]} 28.
exd5 {[%clk 0:01:27]} 28... f6 {[%clk 0:00:55.6]} 29. Ng4 {[%clk 0:01:20.1]}
29... Kh7 {[%clk 0:00:52.1]} 30. Rxe8 {[%clk 0:01:16.9]} 30... Bxe8 {[%clk
0:00:49.1]} 31. d6 {[%clk 0:01:09.2]} 31... Bf7 {[%clk 0:00:45.8]} 32. Re1
{[%clk 0:01:08.9]} 32... Rc6 {[%clk 0:00:44.5]} 33. Re7 {[%clk 0:01:08.5]} 33...
Qxd6 {[%clk 0:00:16.3]} 34. Rxf7 {[%clk 0:01:05.7]} 34... Qxg3+ {[%clk
0:00:14.8]} 35. Kxg3 {[%clk 0:01:05.5]} 35... Kg8 {[%clk 0:00:14.9]} 36. Re7
{[%clk 0:01:03.4]} 36... Rb6 {[%clk 0:00:14.7]} 37. Bc4+ {[%clk 0:01:00.9]}
37... Kh8 {[%clk 0:00:14.4]} 38. Re8 {[%clk 0:00:59.4]} 38... h5 {[%clk
0:00:14.5]} 39. Rxf8+ {[%clk 0:00:59.7]} 39... Kh7 {[%clk 0:00:14.9]} 40. Bg8+
{[%clk 0:00:59.4]} 40... Kh8 {[%clk 0:00:15.5]} 41. Bf7+ {[%clk 0:00:59.6]}
41... Kh7 {[%clk 0:00:15.9]} 42. Bg6# {[%clk 0:01:00.5]} 1-0